[Event "Titled Tuesday Blitz November 14 Early 2023"]
[White "Hartikainen, Jarmo"]
[Black "Timerkhanov, Alexander"]
[WhiteFideId "503134"]
[BlackFideId "24177938"]
[WhiteElo "2165"]
[BlackElo "2686"]
[Result "0-1"]
[Round "2"]
[TimeControl "180+1"]
[Date "2023.11.14"]
[WhiteClock "0:00:04"]
[BlackClock "0:00:53"]
[Board "110"]

1. e4 {[%clk 0:03:00]}  c5 {[%clk 0:02:59]} 2. c3 {[%clk 0:03:00]}  d5 {[%clk 0:02:59]} 3. exd5 {[%clk 0:03:01]}  Qxd5 {[%clk 0:02:58]} 4. d4 {[%clk 0:03:01]}  Nf6 {[%clk 0:02:57]} 5. Nf3 {[%clk 0:03:01]}  e6 {[%clk 0:02:56]} 6. Na3 {[%clk 0:03:01]}  Nc6 {[%clk 0:02:49]} 7. Be3 {[%clk 0:02:57]}  cxd4 {[%clk 0:02:35]} 8. Nb5 {[%clk 0:02:56]}  Qd8 {[%clk 0:02:33]} 9. Nbxd4 {[%clk 0:02:56]}  Bd7 {[%clk 0:02:31]} 10. h3 {[%clk 0:02:49]}  Be7 {[%clk 0:02:30]} 11. Bd3 {[%clk 0:02:46]}  O-O {[%clk 0:02:29]} 12. Qc2 {[%clk 0:02:41]}  h6 {[%clk 0:02:25]} 13. Nxc6 {[%clk 0:02:22]}  Bxc6 {[%clk 0:02:23]} 14. O-O-O {[%clk 0:02:22]}  Qa5 {[%clk 0:02:20]} 15. Kb1 {[%clk 0:02:16]}  Rfd8 {[%clk 0:02:06]} 16. Nd4 {[%clk 0:02:12]}  Ba4 {[%clk 0:02:01]} 17. b3 {[%clk 0:02:10]}  Be8 {[%clk 0:01:59]} 18. g4 {[%clk 0:01:41]}  Nd5 {[%clk 0:01:53]} 19. Bd2 {[%clk 0:01:35]}  Bf6 {[%clk 0:01:45]} 20. h4 {[%clk 0:01:21]}  Rac8 {[%clk 0:01:43]} 21. Ne2 {[%clk 0:00:52]}  Qa3 {[%clk 0:01:30]} 22. Bc1 {[%clk 0:00:45]}  Qc5 {[%clk 0:01:19]} 23. Bb2 {[%clk 0:00:41]}  Qxf2 {[%clk 0:01:16]} 24. Rhf1 {[%clk 0:00:16]}  Qxh4 {[%clk 0:01:12]} 25. g5 {[%clk 0:00:11]}  Ne3 {[%clk 0:01:06]} 26. Qc1 {[%clk 0:00:09]}  Nxd1 {[%clk 0:01:04]} 27. gxf6 {[%clk 0:00:08]}  Nxb2 {[%clk 0:01:03]} 28. Kxb2 {[%clk 0:00:08]}  Rxd3 {[%clk 0:01:01]} 29. Nf4 {[%clk 0:00:08]}  Rdxc3 {[%clk 0:00:56]} 30. Qxc3 {[%clk 0:00:08]}  Rxc3 {[%clk 0:00:56]} 31. Kxc3 {[%clk 0:00:09]}  Qxf6+ {[%clk 0:00:54]} 32. Kc2 {[%clk 0:00:07]}  e5 {[%clk 0:00:53]} 33. Nh5 {[%clk 0:00:04]}  Qxf1 {[%clk 0:00:53]} 0-1


[Site "https://www.chess.com"]

[Event "Titled Tuesday Blitz November 14 Early 2023"]
[White "Fernandez, Daniel"]
[Black "lagunanivaria"]
[WhiteFideId "2015390"]
[WhiteElo "2797"]
[BlackElo "2478"]
[Result "1-0"]
[Round "2"]
[TimeControl "180+1"]
[Date "2023.11.14"]
[WhiteClock "0:00:24"]
[BlackClock "0:00:00"]
[Board "116"]

1. e4 {[%clk 0:03:00]}  e5 {[%clk 0:02:50]} 2. Nf3 {[%clk 0:03:00]}  Nc6 {[%clk 0:02:50]} 3. Bb5 {[%clk 0:03:00]}  a6 {[%clk 0:02:50]} 4. Ba4 {[%clk 0:02:59]}  Nf6 {[%clk 0:02:50]} 5. O-O {[%clk 0:02:58]}  b5 {[%clk 0:02:46]} 6. Bb3 {[%clk 0:02:57]}  Be7 {[%clk 0:02:46]} 7. d4 {[%clk 0:02:51]}  exd4 {[%clk 0:02:44]} 8. e5 {[%clk 0:02:45]}  Ne4 {[%clk 0:02:44]} 9. Bd5 {[%clk 0:02:39]}  Nc5 {[%clk 0:02:31]} 10. Nxd4 {[%clk 0:02:38]}  Bb7 {[%clk 0:01:58]} 11. Nf5 {[%clk 0:02:38]}  O-O {[%clk 0:01:54]} 12. Qg4 {[%clk 0:02:30]}  g6 {[%clk 0:01:53]} 13. Re1 {[%clk 0:02:30]}  Ne6 {[%clk 0:01:27]} 14. Bh6 {[%clk 0:02:20]}  Re8 {[%clk 0:01:27]} 15. Nc3 {[%clk 0:02:11]}  Bf8 {[%clk 0:01:21]} 16. Rad1 {[%clk 0:02:05]}  Rb8 {[%clk 0:01:17]} 17. Qg3 {[%clk 0:01:50]}  Bxh6 {[%clk 0:01:13]} 18. Nxh6+ {[%clk 0:01:49]}  Kg7 {[%clk 0:01:13]} 19. Ng4 {[%clk 0:01:38]}  d6 {[%clk 0:00:53]} 20. Ne4 {[%clk 0:01:21]}  Ng5 {[%clk 0:00:22]} 21. Ngf6 {[%clk 0:01:11]}  Rxe5 {[%clk 0:00:18]} 22. f4 {[%clk 0:00:31]}  Nxe4 {[%clk 0:00:17]} 23. Nxe4 {[%clk 0:00:32]}  Re8 {[%clk 0:00:11]} 24. Bxc6 {[%clk 0:00:32]}  Bxc6 {[%clk 0:00:11]} 25. Qc3+ {[%clk 0:00:33]}  f6 {[%clk 0:00:05]} 26. Qxc6 {[%clk 0:00:33]}  Qe7 {[%clk 0:00:05]} 27. Kf2 {[%clk 0:00:28]}  Qf7 {[%clk 0:00:05]} 28. Qc3 {[%clk 0:00:25]}  Re6 {[%clk 0:00:04]} 29. Ng5 {[%clk 0:00:24]}  Rxe1 {[%clk 0:00:00]} 30. Rxe1 {[%clk 0:00:24]} 1-0


[Site "https://www.chess.com"]

[Event "Titled Tuesday Blitz November 14 Early 2023"]
[White "LangesNasenhaar"]
[Black "Petkov, Momchil"]
[BlackFideId "2921642"]
[WhiteElo "2429"]
[BlackElo "2726"]
[Result "0-1"]
[Round "2"]
[TimeControl "180+1"]
[Date "2023.11.14"]
[WhiteClock "0:01:33"]
[BlackClock "0:01:21"]
[Board "118"]

1. d4 {[%clk 0:02:59]}  d5 {[%clk 0:02:58]} 2. Nc3 {[%clk 0:03:00]}  Nf6 {[%clk 0:02:58]} 3. Bf4 {[%clk 0:03:00]}  e6 {[%clk 0:02:51]} 4. Nb5 {[%clk 0:03:00]}  Na6 {[%clk 0:02:51]} 5. e3 {[%clk 0:03:00]}  Be7 {[%clk 0:02:51]} 6. Nf3 {[%clk 0:02:59]}  O-O {[%clk 0:02:51]} 7. a3 {[%clk 0:02:59]}  c6 {[%clk 0:02:50]} 8. Nc3 {[%clk 0:02:58]}  c5 {[%clk 0:02:48]} 9. Bxa6 {[%clk 0:02:53]}  bxa6 {[%clk 0:02:48]} 10. dxc5 {[%clk 0:02:48]}  Bxc5 {[%clk 0:02:47]} 11. O-O {[%clk 0:02:48]}  a5 {[%clk 0:02:46]} 12. Ne5 {[%clk 0:02:43]}  Ba6 {[%clk 0:02:44]} 13. Re1 {[%clk 0:02:43]}  Rc8 {[%clk 0:02:40]} 14. Bg5 {[%clk 0:02:38]}  Be7 {[%clk 0:02:30]} 15. Ne2 {[%clk 0:02:21]}  Qc7 {[%clk 0:02:28]} 16. Qd4 {[%clk 0:02:04]}  Bc5 {[%clk 0:01:39]} 17. Qh4 {[%clk 0:02:00]}  Qxe5 {[%clk 0:01:36]} 18. c3 {[%clk 0:01:46]}  Bxe2 {[%clk 0:01:33]} 19. Rxe2 {[%clk 0:01:46]}  h6 {[%clk 0:01:27]} 20. Bf4 {[%clk 0:01:46]}  Qh5 {[%clk 0:01:26]} 21. Qxh5 {[%clk 0:01:43]}  Nxh5 {[%clk 0:01:26]} 22. Be5 {[%clk 0:01:44]}  f6 {[%clk 0:01:24]} 23. Bd4 {[%clk 0:01:41]}  Bxd4 {[%clk 0:01:24]} 24. exd4 {[%clk 0:01:42]}  Nf4 {[%clk 0:01:24]} 25. Re3 {[%clk 0:01:41]}  Kf7 {[%clk 0:01:24]} 26. b4 {[%clk 0:01:40]}  a4 {[%clk 0:01:21]} 27. g3 {[%clk 0:01:33]}  Ng6 {[%clk 0:01:21]} 0-1


[Site "https://www.chess.com"]

[Event "Titled Tuesday Blitz November 14 Early 2023"]
[White "Xie, Bryan"]
[Black "Tristan, Leonardo"]
[WhiteFideId "30941296"]
[BlackFideId "113816"]
[WhiteElo "2410"]
[BlackElo "2723"]
[Result "0-1"]
[Round "2"]
[TimeControl "180+1"]
[Date "2023.11.14"]
[WhiteClock "0:00:00"]
[BlackClock "0:00:09"]
[Board "119"]

1. e4 {[%clk 0:02:54]}  d5 {[%clk 0:02:59]} 2. exd5 {[%clk 0:02:54]}  Qxd5 {[%clk 0:03:00]} 3. Nc3 {[%clk 0:02:53]}  Qa5 {[%clk 0:03:00]} 4. d4 {[%clk 0:02:53]}  Nf6 {[%clk 0:03:00]} 5. Nf3 {[%clk 0:02:53]}  Bf5 {[%clk 0:03:01]} 6. Bc4 {[%clk 0:02:53]}  e6 {[%clk 0:03:01]} 7. Bd2 {[%clk 0:02:53]}  Bb4 {[%clk 0:03:01]} 8. O-O {[%clk 0:02:50]}  Nc6 {[%clk 0:03:00]} 9. a3 {[%clk 0:02:50]}  Bxc3 {[%clk 0:03:01]} 10. Bxc3 {[%clk 0:02:51]}  Qb6 {[%clk 0:03:01]} 11. d5 {[%clk 0:02:39]}  O-O-O {[%clk 0:03:01]} 12. dxc6 {[%clk 0:02:23]}  Rxd1 {[%clk 0:03:00]} 13. cxb7+ {[%clk 0:02:23]}  Qxb7 {[%clk 0:03:00]} 14. Raxd1 {[%clk 0:02:24]}  Be4 {[%clk 0:02:56]} 15. Ne1 {[%clk 0:02:02]}  Rd8 {[%clk 0:02:45]} 16. Rxd8+ {[%clk 0:01:52]}  Kxd8 {[%clk 0:02:45]} 17. f3 {[%clk 0:01:51]}  Bd5 {[%clk 0:02:37]} 18. Bxd5 {[%clk 0:01:42]}  Qb6+ {[%clk 0:01:52]} 19. Kh1 {[%clk 0:01:11]}  exd5 {[%clk 0:01:52]} 20. Be5 {[%clk 0:00:58]}  Ne8 {[%clk 0:01:32]} 21. Nd3 {[%clk 0:00:53]}  f6 {[%clk 0:01:32]} 22. Bg3 {[%clk 0:00:45]}  Nd6 {[%clk 0:01:23]} 23. Bf2 {[%clk 0:00:44]}  Qb5 {[%clk 0:01:24]} 24. Bxa7 {[%clk 0:00:40]}  Nc4 {[%clk 0:01:22]} 25. Bd4 {[%clk 0:00:40]}  Ne5 {[%clk 0:01:11]} 26. Bxe5 {[%clk 0:00:33]}  fxe5 {[%clk 0:01:11]} 27. Re1 {[%clk 0:00:33]}  Qc4 {[%clk 0:01:09]} 28. Rxe5 {[%clk 0:00:31]}  c6 {[%clk 0:00:54]} 29. Re2 {[%clk 0:00:31]}  h5 {[%clk 0:00:51]} 30. h3 {[%clk 0:00:30]}  h4 {[%clk 0:00:51]} 31. b3 {[%clk 0:00:20]}  Qc3 {[%clk 0:00:49]} 32. a4 {[%clk 0:00:21]}  Kc7 {[%clk 0:00:48]} 33. Nf4 {[%clk 0:00:16]}  Kb6 {[%clk 0:00:44]} 34. Nd3 {[%clk 0:00:16]}  g5 {[%clk 0:00:43]} 35. Kh2 {[%clk 0:00:15]}  Qf6 {[%clk 0:00:39]} 36. Re5 {[%clk 0:00:15]}  Qd6 {[%clk 0:00:27]} 37. Kh1 {[%clk 0:00:14]}  c5 {[%clk 0:00:25]} 38. Rxg5 {[%clk 0:00:14]}  c4 {[%clk 0:00:26]} 39. bxc4 {[%clk 0:00:07]}  dxc4 {[%clk 0:00:26]} 40. Nb2 {[%clk 0:00:08]}  Qd4 {[%clk 0:00:18]} 41. Rb5+ {[%clk 0:00:07]}  Ka7 {[%clk 0:00:15]} 42. Rb4 {[%clk 0:00:07]}  Qc3 {[%clk 0:00:15]} 43. Rb5 {[%clk 0:00:07]}  Qxc2 {[%clk 0:00:12]} 44. a5 {[%clk 0:00:05]}  c3 {[%clk 0:00:12]} 45. Nc4 {[%clk 0:00:05]}  Qd3 {[%clk 0:00:09]} 46. Rc5 {[%clk 0:00:03]}  c2 {[%clk 0:00:09]} 47. Na3 {[%clk 0:00:03]}  Qd1+ {[%clk 0:00:09]} 48. Kh2 {[%clk 0:00:00]}  Qd6+ {[%clk 0:00:09]} 0-1


[Site "https://www.chess.com"]

[Event "Titled Tuesday Blitz November 14 Early 2023"]
[White "Nagare Kaivalya Sandip"]
[Black "Matveeva, Olga"]
[WhiteFideId "25957929"]
[BlackFideId "24107018"]
[WhiteElo "2679"]
[BlackElo "2380"]
[Result "1-0"]
[Round "2"]
[TimeControl "180+1"]
[Date "2023.11.14"]
[WhiteClock "0:00:10"]
[BlackClock "0:00:00"]
[Board "121"]

1. e4 {[%clk 0:03:00]}  c6 {[%clk 0:03:00]} 2. d4 {[%clk 0:03:00]}  d5 {[%clk 0:03:00]} 3. Nc3 {[%clk 0:03:00]}  dxe4 {[%clk 0:03:00]} 4. Nxe4 {[%clk 0:03:01]}  Nf6 {[%clk 0:03:01]} 5. Nxf6+ {[%clk 0:03:01]}  exf6 {[%clk 0:03:02]} 6. Bc4 {[%clk 0:03:01]}  Bd6 {[%clk 0:03:01]} 7. Nf3 {[%clk 0:03:02]}  O-O {[%clk 0:03:02]} 8. O-O {[%clk 0:03:02]}  Re8 {[%clk 0:03:01]} 9. h3 {[%clk 0:03:01]}  Nd7 {[%clk 0:03:00]} 10. c3 {[%clk 0:03:01]}  Nf8 {[%clk 0:02:59]} 11. a4 {[%clk 0:03:01]}  Bf5 {[%clk 0:02:56]} 12. Qb3 {[%clk 0:03:00]}  Qc7 {[%clk 0:02:49]} 13. Be3 {[%clk 0:02:46]}  Re7 {[%clk 0:02:45]} 14. Qd1 {[%clk 0:02:41]}  Rae8 {[%clk 0:02:44]} 15. Nh4 {[%clk 0:02:41]}  Be4 {[%clk 0:02:39]} 16. Bd3 {[%clk 0:02:41]}  Bh2+ {[%clk 0:02:26]} 17. Kh1 {[%clk 0:02:41]}  Bf4 {[%clk 0:02:24]} 18. Bxe4 {[%clk 0:02:25]}  Rxe4 {[%clk 0:02:22]} 19. Nf5 {[%clk 0:02:20]}  Ng6 {[%clk 0:02:11]} 20. Qf3 {[%clk 0:02:16]}  Bxe3 {[%clk 0:02:09]} 21. fxe3 {[%clk 0:02:12]}  Nh4 {[%clk 0:02:01]} 22. Nxh4 {[%clk 0:02:09]}  Rxh4 {[%clk 0:02:02]} 23. Rae1 {[%clk 0:02:06]}  Rhe4 {[%clk 0:02:01]} 24. Re2 {[%clk 0:01:55]}  Qa5 {[%clk 0:01:52]} 25. Qg3 {[%clk 0:01:48]}  Qh5 {[%clk 0:01:28]} 26. Rf3 {[%clk 0:01:35]}  f5 {[%clk 0:01:22]} 27. Qc7 {[%clk 0:01:31]}  R4e7 {[%clk 0:01:10]} 28. Qf4 {[%clk 0:01:29]}  g6 {[%clk 0:01:07]} 29. Kh2 {[%clk 0:01:22]}  Re4 {[%clk 0:01:06]} 30. Qc7 {[%clk 0:01:21]}  R4e7 {[%clk 0:01:05]} 31. Qg3 {[%clk 0:01:20]}  Re4 {[%clk 0:01:01]} 32. Ref2 {[%clk 0:01:15]}  Kh8 {[%clk 0:00:41]} 33. Qc7 {[%clk 0:01:09]}  R4e7 {[%clk 0:00:40]} 34. Qd6 {[%clk 0:01:08]}  Kg7 {[%clk 0:00:32]} 35. d5 {[%clk 0:01:01]}  cxd5 {[%clk 0:00:31]} 36. Qxd5 {[%clk 0:01:01]}  Qh4 {[%clk 0:00:27]} 37. Qd4+ {[%clk 0:00:48]}  Qf6 {[%clk 0:00:21]} 38. Qxa7 {[%clk 0:00:47]}  Qd6+ {[%clk 0:00:18]} 39. g3 {[%clk 0:00:40]}  b5 {[%clk 0:00:16]} 40. Qd4+ {[%clk 0:00:34]}  Qxd4 {[%clk 0:00:16]} 41. exd4 {[%clk 0:00:34]}  bxa4 {[%clk 0:00:17]} 42. d5 {[%clk 0:00:34]}  Kf6 {[%clk 0:00:15]} 43. c4 {[%clk 0:00:34]}  Ke5 {[%clk 0:00:14]} 44. Kg2 {[%clk 0:00:33]}  Kd4 {[%clk 0:00:14]} 45. Rc3 {[%clk 0:00:21]}  Kc5 {[%clk 0:00:12]} 46. Ra3 {[%clk 0:00:18]}  Kxc4 {[%clk 0:00:09]} 47. Rxa4+ {[%clk 0:00:19]}  Kxd5 {[%clk 0:00:09]} 48. Ra5+ {[%clk 0:00:17]}  Kc4 {[%clk 0:00:09]} 49. Ra6 {[%clk 0:00:17]}  Re2 {[%clk 0:00:07]} 50. Rc6+ {[%clk 0:00:17]}  Kd5 {[%clk 0:00:07]} 51. Rc7 {[%clk 0:00:17]}  Rxf2+ {[%clk 0:00:06]} 52. Kxf2 {[%clk 0:00:18]}  Ke6 {[%clk 0:00:06]} 53. b4 {[%clk 0:00:17]}  Ra8 {[%clk 0:00:05]} 54. Ke3 {[%clk 0:00:15]}  Ra2 {[%clk 0:00:04]} 55. b5 {[%clk 0:00:13]}  Rb2 {[%clk 0:00:04]} 56. Rb7 {[%clk 0:00:13]}  h5 {[%clk 0:00:03]} 57. Kf4 {[%clk 0:00:12]}  Kf6 {[%clk 0:00:02]} 58. h4 {[%clk 0:00:11]}  Rb4+ {[%clk 0:00:01]} 59. Kf3 {[%clk 0:00:11]}  Ke6 {[%clk 0:00:00]} 60. b6 {[%clk 0:00:10]} 1-0


[Site "https://www.chess.com"]

[Event "Titled Tuesday Blitz November 14 Early 2023"]
[White "JuniorJumper"]
[Black "Dmitrenko, Viktor"]
[BlackFideId "14110270"]
[WhiteElo "2602"]
[BlackElo "2363"]
[Result "1-0"]
[Round "2"]
[TimeControl "180+1"]
[Date "2023.11.14"]
[WhiteClock "0:00:31"]
[BlackClock "0:00:00"]
[Board "123"]

1. b3 {[%clk 0:02:48]}  d5 {[%clk 0:02:55]} 2. Bb2 {[%clk 0:02:47]}  Nf6 {[%clk 0:02:53]} 3. e3 {[%clk 0:02:47]}  e6 {[%clk 0:02:52]} 4. Nf3 {[%clk 0:02:46]}  c5 {[%clk 0:02:53]} 5. Bb5+ {[%clk 0:02:44]}  Bd7 {[%clk 0:02:51]} 6. a4 {[%clk 0:02:42]}  Bd6 {[%clk 0:02:44]} 7. O-O {[%clk 0:02:38]}  O-O {[%clk 0:02:41]} 8. Ne5 {[%clk 0:02:37]}  Bxb5 {[%clk 0:02:09]} 9. axb5 {[%clk 0:02:35]}  Nfd7 {[%clk 0:02:09]} 10. f4 {[%clk 0:02:15]}  f6 {[%clk 0:02:08]} 11. Nxd7 {[%clk 0:02:11]}  Nxd7 {[%clk 0:02:09]} 12. Nc3 {[%clk 0:01:59]}  Qb6 {[%clk 0:01:39]} 13. f5 {[%clk 0:01:57]}  d4 {[%clk 0:01:03]} 14. Na4 {[%clk 0:01:24]}  Qc7 {[%clk 0:00:31]} 15. fxe6 {[%clk 0:01:21]}  Bxh2+ {[%clk 0:00:28]} 16. Kh1 {[%clk 0:01:21]}  Nb6 {[%clk 0:00:29]} 17. Nxc5 {[%clk 0:01:16]}  Qxc5 {[%clk 0:00:13]} 18. Kxh2 {[%clk 0:01:16]}  dxe3 {[%clk 0:00:13]} 19. d4 {[%clk 0:01:12]}  Qg5 {[%clk 0:00:08]} 20. Qf3 {[%clk 0:01:07]}  Rfe8 {[%clk 0:00:08]} 21. Qh3 {[%clk 0:00:37]}  Nd5 {[%clk 0:00:00]} 22. Rf5 {[%clk 0:00:31]} 1-0


[Site "https://www.chess.com"]

[Event "Titled Tuesday Blitz November 14 Early 2023"]
[White "Vlassov, Nikolai"]
[Black "Cardozo Munar, Carlos Eduardo"]
[WhiteFideId "4103360"]
[BlackFideId "4409477"]
[WhiteElo "2582"]
[BlackElo "2274"]
[Result "1-0"]
[Round "2"]
[TimeControl "180+1"]
[Date "2023.11.14"]
[WhiteClock "0:00:52"]
[BlackClock "0:00:29"]
[Board "124"]

1. e4 {[%clk 0:03:00]}  e6 {[%clk 0:03:00]} 2. c4 {[%clk 0:03:00]}  d5 {[%clk 0:03:00]} 3. cxd5 {[%clk 0:03:00]}  exd5 {[%clk 0:03:01]} 4. Qb3 {[%clk 0:03:00]}  dxe4 {[%clk 0:02:57]} 5. Bc4 {[%clk 0:03:00]}  Qd7 {[%clk 0:02:50]} 6. Nc3 {[%clk 0:02:59]}  Nf6 {[%clk 0:02:49]} 7. d3 {[%clk 0:02:58]}  exd3 {[%clk 0:02:49]} 8. Bg5 {[%clk 0:02:54]}  Nc6 {[%clk 0:02:43]} 9. O-O-O {[%clk 0:02:50]}  Ne5 {[%clk 0:02:39]} 10. Re1 {[%clk 0:02:36]}  Qf5 {[%clk 0:02:26]} 11. Nf3 {[%clk 0:02:26]}  Bd6 {[%clk 0:02:20]} 12. Rxe5+ {[%clk 0:02:16]}  Bxe5 {[%clk 0:02:17]} 13. Re1 {[%clk 0:01:56]}  d2+ {[%clk 0:02:07]} 14. Bxd2 {[%clk 0:01:52]}  Nd7 {[%clk 0:02:06]} 15. Nxe5 {[%clk 0:01:50]}  Nxe5 {[%clk 0:02:05]} 16. f4 {[%clk 0:01:51]}  O-O {[%clk 0:02:00]} 17. Rxe5 {[%clk 0:01:49]}  Qg4 {[%clk 0:01:58]} 18. Re7 {[%clk 0:01:43]}  Qxg2 {[%clk 0:01:55]} 19. Bxf7+ {[%clk 0:01:37]}  Kh8 {[%clk 0:01:52]} 20. Nd5 {[%clk 0:01:21]}  Bf5 {[%clk 0:01:44]} 21. Bh5 {[%clk 0:01:00]}  Qxh2 {[%clk 0:01:32]} 22. Bd1 {[%clk 0:00:55]}  b6 {[%clk 0:01:10]} 23. Qc3 {[%clk 0:00:54]}  Rg8 {[%clk 0:01:01]} 24. Qe5 {[%clk 0:00:54]}  Qh3 {[%clk 0:00:51]} 25. Bc3 {[%clk 0:00:52]}  Qd3 {[%clk 0:00:29]} 26. Qxg7+ {[%clk 0:00:51]}  Rxg7 {[%clk 0:00:29]} 27. Bxg7+ {[%clk 0:00:52]}  Kg8 {[%clk 0:00:29]} 28. Nf6# {[%clk 0:00:52]} 1-0


[Site "https://www.chess.com"]

[Event "Titled Tuesday Blitz November 14 Early 2023"]
[White "Remolar Gallen, Jose"]
[Black "Pranesh M"]
[WhiteFideId "2215187"]
[BlackFideId "35028600"]
[WhiteElo "2429"]
[BlackElo "2975"]
[Result "1-0"]
[Round "2"]
[TimeControl "180+1"]
[Date "2023.11.14"]
[WhiteClock "0:00:19"]
[BlackClock "0:00:00"]
[Board "127"]

1. d4 {[%clk 0:03:00]}  d5 {[%clk 0:02:59]} 2. c4 {[%clk 0:03:01]}  e6 {[%clk 0:03:00]} 3. Nc3 {[%clk 0:03:01]}  c6 {[%clk 0:02:59]} 4. Nf3 {[%clk 0:03:00]}  Nf6 {[%clk 0:02:59]} 5. Bf4 {[%clk 0:02:58]}  Bd6 {[%clk 0:02:59]} 6. Bg3 {[%clk 0:02:58]}  Ne4 {[%clk 0:02:58]} 7. e3 {[%clk 0:02:55]}  O-O {[%clk 0:02:58]} 8. Bd3 {[%clk 0:02:55]}  Nxg3 {[%clk 0:02:56]} 9. hxg3 {[%clk 0:02:47]}  h6 {[%clk 0:02:56]} 10. g4 {[%clk 0:02:44]}  dxc4 {[%clk 0:02:52]} 11. Bxc4 {[%clk 0:02:44]}  Nd7 {[%clk 0:02:44]} 12. Qd3 {[%clk 0:02:42]}  Be7 {[%clk 0:02:04]} 13. O-O-O {[%clk 0:02:34]}  b6 {[%clk 0:02:00]} 14. Bb3 {[%clk 0:02:31]}  Re8 {[%clk 0:01:53]} 15. Ne4 {[%clk 0:02:02]}  a5 {[%clk 0:01:37]} 16. g5 {[%clk 0:01:55]}  Ba6 {[%clk 0:01:34]} 17. Qc2 {[%clk 0:01:55]}  hxg5 {[%clk 0:01:08]} 18. Rh5 {[%clk 0:01:11]}  g6 {[%clk 0:01:03]} 19. Rh6 {[%clk 0:01:07]}  Bf8 {[%clk 0:00:46]} 20. Rh2 {[%clk 0:00:45]}  a4 {[%clk 0:00:33]} 21. Bxa4 {[%clk 0:00:43]}  Bg7 {[%clk 0:00:24]} 22. Nexg5 {[%clk 0:00:40]}  Bb5 {[%clk 0:00:19]} 23. Bb3 {[%clk 0:00:40]}  Nf6 {[%clk 0:00:18]} 24. Rdh1 {[%clk 0:00:37]}  c5 {[%clk 0:00:17]} 25. Rh8+ {[%clk 0:00:24]}  Bxh8 {[%clk 0:00:16]} 26. Rxh8+ {[%clk 0:00:25]}  Kg7 {[%clk 0:00:16]} 27. Nxf7 {[%clk 0:00:26]}  Rxh8 {[%clk 0:00:05]} 28. Nxd8 {[%clk 0:00:25]}  Rh1+ {[%clk 0:00:05]} 29. Kd2 {[%clk 0:00:25]}  Rxd8 {[%clk 0:00:05]} 30. Ne5 {[%clk 0:00:24]}  Rh6 {[%clk 0:00:02]} 31. Bxe6 {[%clk 0:00:23]}  Kf8 {[%clk 0:00:00]} 32. Nf7 {[%clk 0:00:19]} 1-0


[Site "https://www.chess.com"]

[Event "Titled Tuesday Blitz November 14 Early 2023"]
[White "Galchenko, Matvey"]
[Black "Preobrazhenska_D2011"]
[WhiteFideId "24175480"]
[WhiteElo "2939"]
[BlackElo "2418"]
[Result "1-0"]
[Round "2"]
[TimeControl "180+1"]
[Date "2023.11.14"]
[WhiteClock "0:01:10"]
[BlackClock "0:00:00"]
[Board "129"]

1. f4 {[%clk 0:02:57]}  d5 {[%clk 0:02:57]} 2. Nf3 {[%clk 0:02:57]}  Nf6 {[%clk 0:02:56]} 3. g3 {[%clk 0:02:58]}  c5 {[%clk 0:02:56]} 4. Bg2 {[%clk 0:02:58]}  Nc6 {[%clk 0:02:56]} 5. O-O {[%clk 0:02:58]}  b6 {[%clk 0:02:54]} 6. d3 {[%clk 0:02:56]}  Bb7 {[%clk 0:02:55]} 7. Nc3 {[%clk 0:02:56]}  e6 {[%clk 0:02:54]} 8. e4 {[%clk 0:02:55]}  d4 {[%clk 0:02:45]} 9. Ne2 {[%clk 0:02:55]}  Be7 {[%clk 0:02:46]} 10. h3 {[%clk 0:02:56]}  h5 {[%clk 0:02:46]} 11. c3 {[%clk 0:02:45]}  O-O {[%clk 0:02:29]} 12. c4 {[%clk 0:02:37]}  a6 {[%clk 0:02:25]} 13. e5 {[%clk 0:02:36]}  Ne8 {[%clk 0:02:20]} 14. g4 {[%clk 0:02:37]}  hxg4 {[%clk 0:02:13]} 15. hxg4 {[%clk 0:02:38]}  b5 {[%clk 0:02:06]} 16. b3 {[%clk 0:02:36]}  Qd7 {[%clk 0:01:57]} 17. Ng3 {[%clk 0:02:36]}  Rc8 {[%clk 0:01:27]} 18. f5 {[%clk 0:02:31]}  Qc7 {[%clk 0:01:13]} 19. Qe2 {[%clk 0:02:26]}  bxc4 {[%clk 0:00:50]} 20. bxc4 {[%clk 0:02:27]}  Rb8 {[%clk 0:00:49]} 21. Nh5 {[%clk 0:02:27]}  Bd8 {[%clk 0:00:37]} 22. Bf4 {[%clk 0:01:45]}  Ne7 {[%clk 0:00:18]} 23. f6 {[%clk 0:01:35]}  Ng6 {[%clk 0:00:18]} 24. fxg7 {[%clk 0:01:35]}  Nxg7 {[%clk 0:00:19]} 25. Bh6 {[%clk 0:01:32]}  Ne8 {[%clk 0:00:16]} 26. Rae1 {[%clk 0:01:28]}  Be7 {[%clk 0:00:13]} 27. Qf2 {[%clk 0:01:22]}  Bc6 {[%clk 0:00:12]} 28. Qg3 {[%clk 0:01:22]}  Rb2 {[%clk 0:00:12]} 29. Rf2 {[%clk 0:01:21]}  Qb6 {[%clk 0:00:08]} 30. Ref1 {[%clk 0:01:18]}  Rxf2 {[%clk 0:00:08]} 31. Qxf2 {[%clk 0:01:18]}  Nc7 {[%clk 0:00:07]} 32. Bxf8 {[%clk 0:01:18]}  Nxf8 {[%clk 0:00:07]} 33. Ng5 {[%clk 0:01:18]}  Be8 {[%clk 0:00:04]} 34. Nxf7 {[%clk 0:01:18]}  Ng6 {[%clk 0:00:03]} 35. Be4 {[%clk 0:01:15]}  Nh8 {[%clk 0:00:03]} 36. Nxh8 {[%clk 0:01:10]}  Kxh8 {[%clk 0:00:04]} 37. Qf4 {[%clk 0:01:11]}  Kg8 {[%clk 0:00:03]} 38. Qh6 {[%clk 0:01:11]}  Bf7 {[%clk 0:00:00]} 39. Qh7+ {[%clk 0:01:10]} 1-0


[Site "https://www.chess.com"]